fUST/lending_fUST_20240917
["ID","MTS","AMOUNT","RATE_DAILY","PERIOD"]
[338397696,1726583443562,-2500.0,0.0002,2]
[338397697,1726583443571,-500.0,0.0002,2]
[338397698,1726583443581,-2500.0,0.0002,2]
[338397699,1726583443591,-219.074005,0.0002,2]
[338397700,1726583443602,-219.074005,0.0002,2]
[338397701,1726583443612,-219.074005,0.0002,2]
[338397702,1726583443623,-219.074005,0.0002,2]
[338397703,1726583443634,-151.0,0.0002,2]
[338397704,1726583443644,-151.0,0.0002,2]
[338397705,1726583443655,-2500.0,0.0002,2]
[338397706,1726583443666,-388.535511,0.0002,2]
[338397707,1726583443680,-388.535511,0.0002,2]
[338397708,1726583443689,-151.0,0.0002,2]
[338397709,1726583443699,-151.0,0.0002,2]
[338397710,1726583443708,-175.75823356,0.0002,2]
[338397711,1726583443718,-151.0,0.0002,2]
[338397712,1726583443728,-260.061806,0.0002,2]
[338397713,1726583443737,-151.0,0.0002,2]
[338397714,1726583443748,-151.0,0.0002,2]
[338397716,1726583443758,-2500.0,0.0002,2]
[338397717,1726583443768,-2952.645012,0.0002,2]
[338397718,1726583443991,-2952.645012,0.0002,2]
[338397719,1726583444001,-235.957308,0.0002,2]
[338397720,1726583444011,-235.957308,0.0002,2]
[338397721,1726583444020,-151.0,0.0002,2]
[338397722,1726583444031,-290.149861,0.0002,2]
[338397723,1726583444041,-290.149861,0.0002,2]
[338397724,1726583444051,-151.0,0.0002,2]
[338397725,1726583444061,-245.707442,0.0002,2]
[338397726,1726583444070,-245.707442,0.0002,2]
[338397727,1726583444080,-26732.29796474,0.0002,2]
[338397728,1726583444175,500.67196961,0.00024,60]
[338397729,1726583444879,2758.23,0.00024,60]
[338397730,1726583444944,500.0,0.00024,60]
[338397731,1726583445826,500.0,0.00024,60]
[338397754,1726583446198,9708.74,0.00024,60]
[338397757,1726583446461,-524.0,0.00018841,2]
[338397758,1726583446470,-464.93124795,0.00019258,2]
[338397759,1726583448219,545.37,0.00024,60]
[338397760,1726583448301,500.0,0.00024,60]
[338397761,1726583449202,500.0,0.00024,60]
[338397762,1726583449804,1040.15,0.00024,60]
[338397763,1726583449891,544.9,0.00024,60]
[338397764,1726583452376,1492.46,0.00024,60]
[338397765,1726583453073,2870.58,0.00024,60]
[338397766,1726583453265,500.0,0.00024,60]
[338397767,1726583454203,500.0,0.00024,60]
[338397768,1726583455206,407.14689993,0.00024,60]
[338397769,1726583455737,500.0,0.00024,60]
[338397770,1726583456639,500.0,0.00024,60]
[338397771,1726583457039,500.0,0.00024,60]
[338397772,1726583459246,530.96,0.00024,60]
[338397773,1726583459444,504.9,0.00024,60]
[338397774,1726583459866,2071.7,0.00024,60]
[338397775,1726583460104,1249.93,0.00024,60]
[338397776,1726583460443,601.72,0.00024,60]
[338397777,1726583461134,870.31,0.00024,60]
[338397778,1726583461870,500.0,0.00024,60]
[338397779,1726583464678,507.72,0.00024,60]
[338397780,1726583465258,500.0,0.00024,60]
[338397781,1726583466500,2048.86,0.00024,60]
[338397782,1726583467059,792.27,0.00024,60]
[338397783,1726583467391,686.01,0.00024,60]
[338397784,1726583468583,500.0,0.00024,60]
[338397785,1726583469376,500.0,0.00024,60]
[338397786,1726583470522,500.0,0.00024,60]
[338397787,1726583470578,597.59,0.00024,60]
[338397788,1726583470881,500.0,0.00024,60]
[338397789,1726583470994,739.97,0.00024,60]
[338397790,1726583471889,500.0,0.00024,60]
[338397791,1726583475246,1703.14,0.00024,60]
[338397792,1726583475318,500.0,0.00024,60]
[338397793,1726583476022,511.36,0.00024,60]
[338397794,1726583476250,720.86,0.00024,60]
[338397795,1726583476416,874.06,0.00024,60]
[338397796,1726583476541,502.58213495,0.00024,60]
[338397797,1726583477338,500.0,0.00024,60]
[338397798,1726583477938,500.0,0.00024,60]
[338397799,1726583478138,500.0,0.00024,60]
[338397800,1726583478498,2139.63,0.00024,60]
[338397801,1726583478558,500.0,0.00024,60]
[338397802,1726583479006,1939.71,0.00024,60]
[338397803,1726583479964,1000.87,0.00024,60]
[338397804,1726583481102,500.0,0.00024,60]
[338397805,1726583484638,500.0,0.00024,60]
[338397806,1726583484861,1747.05,0.00024,60]
[338397807,1726583485405,500.0,0.00024,60]
[338397808,1726583485569,500.0,0.00024,60]
[338397809,1726583485629,2340.85,0.00024,60]
[338397810,1726583485865,500.0,0.00024,60]
[338397811,1726583485922,504.37,0.00024,60]
[338397812,1726583486614,500.0,0.00024,60]
[338397813,1726583487172,500.0,0.00024,60]
[338397814,1726583487476,500.0,0.00024,60]
[338397815,1726583487689,1864.93,0.00024,60]
[338397816,1726583487873,839.56,0.00024,60]
[338397817,1726583488866,500.0,0.00024,60]
[338397818,1726583489129,500.0,0.00024,60]
[338397819,1726583489645,835.91,0.00024,60]
[338397820,1726583489755,500.0,0.00024,60]
[338397821,1726583490187,500.0,0.00024,60]
[338397822,1726583490908,500.0,0.00024,60]
[338397823,1726583491217,948.98,0.00024,60]
[338397824,1726583492167,767.64,0.00024,60]
[338397825,1726583492839,500.0,0.00024,60]
[338397826,1726583493160,620.36,0.00024,60]
[338397827,1726583493326,940.47,0.00024,60]
[338397828,1726583494571,216.19177465,0.00024,60]
[338397829,1726583494890,888.89,0.00024,60]
[338397830,1726583495368,500.0,0.00024,60]
[338397831,1726583495534,500.0,0.00024,60]
[338397832,1726583497587,500.0,0.00024,60]
[338397833,1726583497745,500.0,0.00024,60]
[338397834,1726583498304,500.0,0.00024,60]
[338397835,1726583498380,500.0,0.00024,60]
[338397836,1726583499055,2093.53,0.00024,60]
[338397837,1726583499555,500.0,0.00024,60]
[338397838,1726583500368,1020.75,0.00024,60]
[338397839,1726583500601,500.0,0.00024,60]
[338397840,1726583501033,500.0,0.00024,60]
[338397841,1726583501460,500.0,0.00024,60]
[338397842,1726583501520,2241.55,0.00024,60]
[338397843,1726583501772,500.0,0.00024,60]
[338397844,1726583502793,605.82,0.00024,60]
[338397845,1726583503024,500.0,0.00024,60]
[338397846,1726583503745,690.17,0.00024,60]
[338397847,1726583504579,500.0,0.00024,60]
[338397848,1726583505448,507.15039992,0.00024,60]
[338397849,1726583506202,500.0,0.00024,60]
[338397850,1726583507947,500.0,0.00024,60]
[338397851,1726583508166,500.0,0.00024,60]
[338397852,1726583509130,500.0,0.00024,60]
[338397853,1726583510008,993.27,0.00024,60]
[338397854,1726583510653,1552.22,0.00024,60]
[338397855,1726583510732,500.0,0.00024,60]
[338397856,1726583511016,846.93,0.00024,60]
[338397857,1726583511080,1262.05,0.00024,60]
[338397858,1726583511631,500.0,0.00024,60]
[338397859,1726583511853,500.0,0.00024,60]
[338397860,1726583512466,1411.54,0.00024,60]
[338397861,1726583512520,500.0,0.00024,60]
[338397862,1726583512715,500.0,0.00024,60]
[338397863,1726583515725,500.0,0.00024,60]
[338397864,1726583516186,2282.46,0.00024,60]
[338397865,1726583516670,508.0406016,0.00024,60]
[338397868,1726583518540,500.0,0.00024,60]
[338397869,1726583519350,500.0,0.00024,60]
[338397870,1726583519730,600.45797364,0.00024,60]
[338397871,1726583519788,1318.1,0.00024,60]
[338397872,1726583520021,500.0,0.00024,60]
[338397873,1726583520937,500.0,0.00024,60]
[338397874,1726583520996,500.0,0.00024,60]
[338397875,1726583521066,500.8301872,0.00024,60]
[338397876,1726583521641,500.0,0.00024,60]
[338397877,1726583521861,1425.88,0.00024,60]
[338397878,1726583523127,2608.85,0.00024,60]
[338397879,1726583523740,1648.93,0.00024,60]
[338397880,1726583524030,500.0,0.00024,60]
[338397881,1726583524771,500.0,0.00024,60]
[338397882,1726583525550,500.0,0.00024,60]
[338397883,1726583527446,758.5,0.00024,60]
[338397884,1726583527750,2611.61,0.00024,60]
[338397885,1726583529568,500.0,0.00024,60]
[338397886,1726583531181,1473.49,0.00024,60]
[338397887,1726583531916,502.92885781,0.00024,60]
[338397888,1726583532612,500.0,0.00024,60]
[338397889,1726583533609,775.14,0.00024,60]
[338397890,1726583533671,500.0,0.00024,60]
[338397891,1726583533792,500.0,0.00024,60]
[338397892,1726583533845,640.58,0.00024,60]
[338397893,1726583534656,500.0,0.00024,60]
[338397894,1726583534742,500.0,0.00024,60]
[338397895,1726583535310,500.0,0.00024,60]
[338397896,1726583536592,1772.88,0.00024,60]
[338397897,1726583536656,378.58147559,0.00024,60]
[338397898,1726583536715,1550.16,0.00024,60]
[338397899,1726583537372,2201.84,0.00024,60]
[338397900,1726583537714,1000.0,0.00024,60]
[338397901,1726583538679,500.0,0.00024,60]
[338397902,1726583538767,521.92444219,0.00024,60]
[338397903,1726583538898,533.94,0.00024,60]
[338397904,1726583539832,500.0,0.00024,60]
[338397905,1726583540114,524.77,0.00024,60]
[338397906,1726583540185,500.0,0.00024,60]
[338397907,1726583541922,1349.73,0.00024,60]
[338397908,1726583542767,500.0,0.00024,60]
[338397909,1726583543710,1000.65,0.00024,60]
[338397910,1726583544901,708.65,0.00024,60]
[338397911,1726583545250,190.94395794,0.00024,60]
[338397912,1726583546286,500.0,0.00024,60]
[338397913,1726583547219,608.27,0.00024,60]
[338397914,1726583547295,500.0,0.00024,60]
[338397915,1726583547347,711.04,0.00024,60]
[338397916,1726583549358,1372.15,0.00024,60]
[338397917,1726583549700,500.0,0.00024,60]
[338397918,1726583551308,1207.24,0.00024,60]
[338397920,1726583552988,4444.91,0.00024,60]
[338397921,1726583553429,540.42,0.00024,60]
[338397922,1726583553658,500.0,0.00024,60]
[338397923,1726583554332,500.0,0.00024,60]
[338397924,1726583554950,2280.88,0.00024,60]
[338397925,1726583556946,500.0,0.00024,60]
[338397926,1726583557790,1909.11,0.00024,60]
[338397927,1726583558274,523.25774803,0.00024,60]
[338397928,1726583558910,2114.0,0.00024,60]
[338397929,1726583559676,500.0,0.00024,60]
[338397930,1726583560774,738.13,0.00024,60]
[338397931,1726583561953,500.0,0.00024,60]
[338397932,1726583562670,500.0,0.00024,60]
[338397933,1726583562832,2067.54,0.00024,60]
[338397934,1726583563936,872.08,0.00024,60]
[338397935,1726583564725,500.0,0.00024,60]
[338397936,1726583564792,1775.96,0.00024,60]
[338397937,1726583566486,639.9,0.00024,60]
[338397938,1726583569196,2418.43,0.00024,60]
[338397939,1726583571867,1414.53,0.00024,60]
[338397940,1726583571919,917.26,0.00024,60]
[338397942,1726583572315,500.0,0.00024,60]
[338397943,1726583572467,500.0,0.00024,60]
[338397944,1726583572587,335.35913052,0.00024,60]
[338397945,1726583572659,1421.29,0.00024,60]
[338397946,1726583572710,1163.78,0.00024,60]
[338397947,1726583572791,500.0,0.00024,60]
[338397948,1726583574059,500.0,0.00024,60]
[338397949,1726583574129,8675.78,0.00024,60]
[338397950,1726583575798,500.0,0.00024,60]
[338397952,1726583578211,500.0,0.00024,60]
[338397953,1726583578933,500.0,0.00024,60]
[338397954,1726583579227,500.0,0.00024,60]
[338397955,1726583579730,518.52633962,0.00024,60]
[338397956,1726583579792,500.0,0.00024,60]
[338397957,1726583580464,500.0,0.00024,60]
[338397958,1726583580617,1360.15,0.00024,60]
[338397959,1726583580961,1839.93,0.00024,60]
[338397960,1726583581729,978.61,0.00024,60]
[338397961,1726583583208,1041.74,0.00024,60]
[338397962,1726583590994,500.0,0.00024,60]
[338397963,1726583591441,500.0,0.00024,60]
[338397964,1726583591838,500.0,0.00024,60]
[338397965,1726583592208,2322.71,0.00024,60]
[338397966,1726583592520,500.0,0.00024,60]
[338397967,1726583592844,500.0,0.00024,60]
[338397968,1726583596304,2816.48,0.00024,60]
[338397969,1726583596403,500.0,0.00024,60]
[338397970,1726583597138,500.0,0.00024,60]
[338397971,1726583597719,2878.37,0.00024,60]
[338397972,1726583599437,500.0,0.00024,60]
[338397973,1726583600946,500.0,0.00024,60]
[338397974,1726583601587,505.50171352,0.00024,60]
[338397975,1726583602015,500.0,0.00024,60]
[338397976,1726583602235,2491.65,0.00024,60]
[338397977,1726583604808,500.0,0.00024,60]
[338397978,1726583605333,2868.74,0.00024,60]
[338397979,1726583607391,500.0,0.00024,60]
[338397980,1726583607468,500.0,0.00024,60]
[338397981,1726583607986,500.0,0.00024,60]
[338397982,1726583609797,500.0,0.00024,60]
[338397983,1726583609857,2308.54,0.00024,60]
[338397984,1726583611183,500.0,0.00024,60]
[338397985,1726583611749,500.0,0.00024,60]
[338397986,1726583612471,2277.1,0.00024,60]
[338397987,1726583612969,500.0,0.00024,60]
[338397988,1726583613238,500.0,0.00024,60]
[338397989,1726583616169,500.0,0.00024,60]
[338397990,1726583616380,500.0,0.00024,60]
[338397991,1726583617114,500.0,0.00024,60]
[338397992,1726583617921,2285.06,0.00024,60]
[338397993,1726583618509,1884.72,0.00024,60]
[338397994,1726583618914,500.0,0.00024,60]
[338397995,1726583621815,1037.51,0.00024,60]
[338397996,1726583622359,687.11,0.00024,60]
[338397997,1726583623648,500.0,0.00024,60]
[338397998,1726583623914,500.0,0.00024,60]
[338397999,1726583625156,500.0,0.00024,60]
[338398000,1726583627661,500.0,0.00024,60]
[338398001,1726583627853,717.85,0.00024,60]
[338398002,1726583627908,500.0,0.00024,60]
[338398003,1726583628279,500.0,0.00024,60]
[338398004,1726583631385,630.01,0.00024,60]
[338398005,1726583632075,634.01,0.00024,60]
[338398006,1726583633278,870.8,0.00024,60]
[338398007,1726583633826,577.4,0.00024,60]
[338398008,1726583634277,611.29,0.00024,60]
[338398009,1726583634335,263.87936378,0.00024,60]
[338398010,1726583634457,768.35,0.00024,60]
[338398011,1726583636162,500.0,0.00024,60]
[338398012,1726583636534,1369.7,0.00024,60]
[338398013,1726583637014,759.26,0.00024,60]
[338398014,1726583637071,617.61356201,0.00024,60]
[338398021,1726583638986,500.0,0.00024,60]
[338398022,1726583639144,500.0,0.00024,60]
[338398032,1726583641002,930.9,0.00024,60]
[338398038,1726583642812,1184.89,0.00024,60]
[338398039,1726583643050,606.92,0.00024,60]
[338398040,1726583644935,516.51,0.00024,60]
[338398042,1726583645587,500.0,0.00024,60]
[338398043,1726583645886,500.0,0.00024,60]
[338398044,1726583646732,500.0,0.00024,60]
[338398045,1726583647903,519.00212797,0.00024,60]
[338398046,1726583648819,500.0,0.00024,60]
[338398047,1726583649816,2562.18,0.00024,60]
[338398048,1726583650086,500.0,0.00024,60]
[338398049,1726583650174,500.0,0.00024,60]
[338398050,1726583650932,500.0,0.00024,60]
[338398051,1726583651371,500.0,0.00024,60]
[338398052,1726583652450,645.51,0.00024,60]
[338398053,1726583653798,551.06,0.00024,60]
[338398054,1726583654152,500.0,0.00024,60]
[338398055,1726583655139,2234.32,0.00024,60]
[338398056,1726583655584,500.0,0.00024,60]
[338398057,1726583656140,575.09232438,0.00024,60]
[338398058,1726583658173,500.0,0.00024,60]
[338398059,1726583658945,845.91,0.00024,60]
[338398060,1726583659135,500.0,0.00024,60]
[338398061,1726583660295,500.0,0.00024,60]
[338398062,1726583661073,781.55,0.00024,60]
[338398063,1726583661254,519.81,0.00024,60]
[338398064,1726583661983,3087.98,0.00024,60]
[338398065,1726583663481,1023.4,0.00024,60]
[338398066,1726583664522,500.0,0.00024,60]
[338398067,1726583665097,500.0,0.00024,60]
[338398068,1726583666923,500.0,0.00024,60]
[338398069,1726583668257,2838.33,0.00024,60]
[338398070,1726583669030,500.0,0.00024,60]
[338398071,1726583669266,801.08,0.00024,60]
[338398072,1726583671574,500.0,0.00024,60]
[338398073,1726583671701,791.64,0.00024,60]
[338398074,1726583673154,500.0,0.00024,60]
[338398075,1726583673571,500.0,0.00024,60]
[338398076,1726583674123,500.0,0.00024,60]
[338398077,1726583675901,2261.54,0.00024,60]
[338398078,1726583676893,500.0,0.00024,60]
[338398079,1726583677079,978.22,0.00024,60]
[338398080,1726583677143,2439.59,0.00024,60]
[338398081,1726583677529,964.72,0.00024,60]
[338398082,1726583677584,202.05721656,0.00024,60]
[338398083,1726583680065,500.0,0.00024,60]
[338398084,1726583680176,500.0,0.00024,60]
[338398085,1726583680620,500.0,0.00024,60]
[338398086,1726583680683,500.0,0.00024,60]
[338398087,1726583682402,500.0,0.00024,60]
[338398088,1726583683278,500.72,0.00024,60]
[338398089,1726583683340,500.0,0.00024,60]
[338398090,1726583683684,500.0,0.00024,60]
[338398091,1726583683746,500.0,0.00024,60]
[338398092,1726583685235,500.0,0.00024,60]
[338398093,1726583686090,500.0,0.00024,60]
[338398094,1726583686265,1956.29,0.00024,60]
[338398095,1726583686321,564.54,0.00024,60]
[338398096,1726583686809,500.0,0.00024,60]
[338398097,1726583687644,500.0,0.00024,60]
[338398098,1726583688581,2244.68,0.00024,60]
[338398099,1726583688738,1021.94,0.00024,60]
[338398100,1726583689040,996.76,0.00024,60]
[338398101,1726583689935,888.25,0.00024,60]
[338398102,1726583690628,2050.48,0.00024,60]
[338398103,1726583691557,1806.94,0.00024,60]
[338398104,1726583691832,1014.22,0.00024,60]
[338398105,1726583692288,1681.53,0.00024,60]
[338398106,1726583693631,500.0,0.00024,60]
[338398107,1726583694885,9304.21,0.00024,60]
[338398108,1726583694943,1686.08,0.00024,60]
[338398109,1726583697605,500.0,0.00024,60]
[338398110,1726583698293,500.0,0.00024,60]
[338398111,1726583698916,500.0,0.00024,60]
[338398112,1726583699045,1226.45,0.00024,60]
[338398113,1726583700044,1787.22,0.00024,60]
[338398114,1726583700110,726.89,0.00024,60]
[338398115,1726583701069,649.64,0.00024,60]
[338398116,1726583702013,500.0,0.00024,60]
[338398118,1726583703131,500.0,0.00024,60]
[338398119,1726583703434,500.0,0.00024,60]
[338398120,1726583704000,1985.37,0.00024,60]
[338398121,1726583706985,1109.25,0.00024,60]
[338398122,1726583709207,514.56,0.00024,60]
[338398123,1726583710545,9947.59,0.00024,60]
[338398124,1726583711506,500.0,0.00024,60]
[338398125,1726583711582,1598.1,0.00024,60]
[338398126,1726583712700,1981.39,0.00024,60]
[338398127,1726583713506,500.0,0.00024,60]
[338398128,1726583713927,1026.35,0.00024,60]
[338398129,1726583714357,1699.01,0.00024,60]
[338398130,1726583720578,5320.07,0.00024,60]
[338398131,1726583721378,500.0,0.00024,60]
[338398132,1726583721502,662.32,0.00024,60]
[338398133,1726583721606,500.0,0.00024,60]
[338398134,1726583721671,1478.47,0.00024,60]
[338398135,1726583722086,500.0,0.00024,60]
[338398136,1726583722345,2120.1,0.00024,60]
[338398137,1726583722915,500.0,0.00024,60]
[338398138,1726583723814,2142.96,0.00024,60]
[338398139,1726583725106,537.83788357,0.00024,60]
[338398140,1726583725674,811.64,0.00024,60]
[338398141,1726583725778,500.0,0.00024,60]
[338398142,1726583726297,657.86,0.00024,60]
[338398143,1726583727443,500.0,0.00024,60]
[338398144,1726583727681,500.0,0.00024,60]
[338398145,1726583728482,909.44,0.00024,60]
[338398146,1726583728956,4259.7,0.00024,60]
[338398147,1726583729119,500.0,0.00024,60]
[338398148,1726583729404,500.0,0.00024,60]
[338398149,1726583731035,500.0,0.00024,60]
[338398150,1726583731373,500.0,0.00024,60]
[338398151,1726583731595,500.0,0.00024,60]
[338398152,1726583731784,617.65,0.00024,60]
[338398153,1726583735007,500.0,0.00024,60]
[338398154,1726583735658,1783.41,0.00024,60]
[338398155,1726583736620,500.0,0.00024,60]
[338398156,1726583737284,2148.15,0.00024,60]
[338398157,1726583737661,500.73367531,0.00024,60]
[338398158,1726583738734,500.0,0.00024,60]
[338398159,1726583738827,500.0,0.00024,60]
[338398160,1726583739248,500.0,0.00024,60]
[338398161,1726583739975,500.0,0.00024,60]
[338398162,1726583741608,782.64,0.00024,60]
[338398163,1726583743483,500.0,0.00024,60]
[338398164,1726583743637,2643.31,0.00024,60]
[338398165,1726583743700,500.0,0.00024,60]
[338398166,1726583744181,500.0,0.00024,60]
[338398167,1726583746273,500.0,0.00024,60]
[338398168,1726583746404,500.0,0.00024,60]
[338398169,1726583747107,500.0,0.00024,60]
[338398170,1726583747294,500.0,0.00024,60]
[338398171,1726583748310,500.0,0.00024,60]
[338398172,1726583750287,500.0,0.00024,60]
[338398173,1726583752388,500.0,0.00024,60]
[338398174,1726583752639,712.29,0.00024,60]
[338398175,1726583753136,2110.09,0.00024,60]
[338398176,1726583755104,1763.27,0.00024,60]
[338398177,1726583755169,500.0,0.00024,60]
[338398178,1726583755980,588.83,0.00024,60]
[338398179,1726583756630,500.0,0.00024,60]
[338398180,1726583756814,500.0,0.00024,60]
[338398181,1726583757191,500.0,0.00024,60]
[338398182,1726583757679,500.0,0.00024,60]
[338398183,1726583757828,500.0,0.00024,60]
[338398184,1726583757938,713.97,0.00024,60]
[338398185,1726583758345,170.89083759,0.0001,30]
[338398186,1726583761961,1352.51,0.00024,60]
[338398187,1726583762023,1349.18,0.00024,60]
[338398188,1726583762762,842.62,0.00024,60]
[338398189,1726583764843,500.0,0.00024,60]
[338398190,1726583767570,997.81,0.00024,60]
[338398191,1726583768241,500.0,0.00024,60]
[338398192,1726583768984,679.13,0.00024,60]
[338398193,1726583769456,500.0,0.00024,60]
[338398194,1726583771260,166.01335792,0.00024,60]
[338398195,1726583771915,824.93,0.00024,60]
[338398196,1726583772184,500.0,0.00024,60]
[338398197,1726583772246,530.57,0.00024,60]
[338398198,1726583773160,673.11,0.00024,60]
[338398199,1726583773226,500.0,0.00024,60]
[338398200,1726583774084,879.04,0.00024,60]
[338398201,1726583774299,500.0,0.00024,60]
[338398202,1726583778170,500.0,0.00024,60]
[338398203,1726583778811,500.0,0.00024,60]
[338398204,1726583779336,500.0,0.00024,60]
[338398205,1726583781242,500.0,0.00024,60]
[338398206,1726583781835,533.47,0.00024,60]
[338398207,1726583782049,1312.63,0.00024,60]
[338398208,1726583782156,500.0,0.00024,60]
[338398209,1726583782291,751.14,0.00024,60]
[338398210,1726583783550,500.0,0.00024,60]
[338398211,1726583784526,1303.48,0.00024,60]
[338398212,1726583784630,505.48155771,0.00024,60]
[338398213,1726583784790,500.0,0.00024,60]
[338398214,1726583785128,2025.92,0.00024,60]
[338398215,1726583785644,500.0,0.00024,60]
[338398216,1726583785857,500.0,0.00024,60]
[338398217,1726583786612,1836.34,0.00024,60]
[338398218,1726583787838,500.0,0.00024,60]
[338398219,1726583788922,500.0,0.00024,60]
[338398220,1726583789418,8314.29,0.00024,60]
[338398221,1726583789624,500.0,0.00024,60]
[338398222,1726583790020,500.0,0.00024,60]
[338398223,1726583790395,1910.25,0.00024,60]
[338398224,1726583790516,462.59320963,0.00024,60]
[338398225,1726583790643,500.0,0.00024,60]
[338398226,1726583791022,798.63,0.00024,60]
[338398227,1726583794071,1732.04,0.00024,60]
[338398228,1726583794752,500.0,0.00024,60]
[338398229,1726583795136,689.41,0.00024,60]
[338398231,1726583796148,500.0,0.00024,60]
[338398232,1726583798338,920.18,0.00024,60]
[338398233,1726583801693,500.0,0.00024,60]
[338398234,1726583802755,2006.3,0.00024,60]
[338398235,1726583803366,1352.73,0.00024,60]
[338398236,1726583806576,2638.5,0.00024,60]
[338398237,1726583807170,2028.29,0.00024,60]
[338398238,1726583808928,1548.47,0.00024,60]
[338398239,1726583809465,500.0,0.00024,60]
[338398240,1726583809893,500.0,0.00024,60]
[338398241,1726583810105,500.0,0.00024,60]
[338398242,1726583812775,500.0,0.00024,60]
[338398243,1726583813727,711.07,0.00024,60]
[338398244,1726583815199,951.89,0.00024,60]
[338398245,1726583816756,1108.47,0.00024,60]
[338398246,1726583817581,502.45,0.00024,60]
[338398247,1726583821048,857.35,0.00024,60]
[338398248,1726583821539,7387.02,0.00024,60]